bitfinex/quotes_BTCUSD_20241117
["timestamp","ask_amount","ask_price","bid_price","bid_amount"]
[1731822680970,0.0008558,90549.0,90548.0,0.16332196]
[1731822681178,0.0008558,90549.0,90548.0,0.12564282]
[1731822681451,0.0008558,90549.0,90548.0,0.16331843]
[1731822681833,0.0008558,90549.0,90548.0,0.05288043]
[1731822682044,0.22086,90555.0,90549.0,0.003]
[1731822682253,0.0802,90558.0,90550.0,0.04664858]
[1731822682462,0.0802,90558.0,90549.0,0.223873]
[1731822682463,0.110431,90555.0,90551.0,0.04664858]
[1731822682860,0.110431,90555.0,90552.0,0.0234633]
[1731822683118,0.0802,90558.0,90553.0,0.0234633]
[1731822683349,0.110429,90556.0,90554.0,0.0234633]
[1731822683558,0.110428,90556.0,90555.0,0.0234633]
[1731822684000,0.110428,90556.0,90555.0,0.02669515]
[1731822684478,0.0802,90558.0,90555.0,0.02669515]
[1731822684688,0.0766,90560.0,90556.0,0.12836947]
[1731822685065,0.187024,90560.0,90557.0,0.01449033]
[1731822685215,0.187024,90560.0,90557.0,0.0177225]
[1731822685372,0.110425,90559.0,90558.0,0.01794135]
[1731822686271,0.110425,90559.0,90558.0,0.01793479]
[1731822686721,0.110425,90559.0,90558.0,0.02115956]
[1731822686937,0.110425,90559.0,90558.0,0.01793479]
[1731822688143,0.110425,90559.0,90558.0,0.00345102]
[1731822688318,0.110425,90559.0,90558.0,0.01793741]
[1731822688569,0.110425,90559.0,90558.0,0.01448639]
[1731822688748,0.110425,90559.0,90558.0,0.01793737]
[1731822689401,0.0766,90560.0,90558.0,0.01793737]
[1731822689626,0.0766,90560.0,90559.0,0.01793737]
[1731822689850,0.187024,90560.0,90559.0,0.01793737]
[1731822690295,0.187024,90560.0,90559.0,0.02116171]
[1731822691001,0.079,90564.0,90559.0,0.02116171]
[1731822691222,0.10906255,90563.0,90560.0,0.00345098]
[1731822691477,0.110422,90561.0,90560.0,0.00345098]
[1731822691818,0.10906255,90563.0,90553.0,0.220862]
[1731822691819,0.331265,90562.0,90561.0,0.00345091]
[1731822691909,0.110422,90561.0,90560.0,0.02115051]
[1731822692147,0.44032755,90562.0,90561.0,0.00345089]
[1731822692372,0.44032755,90562.0,90555.0,0.110429]
[1731822692373,0.32990655,90562.0,90555.0,0.110429]
[1731822692596,0.0017122,90566.0,90565.0,0.110417]
[1731822692823,0.0017122,90566.0,90565.0,0.12778472]
[1731822693049,0.0017122,90566.0,90565.0,0.02115141]
[1731822695709,0.0017122,90566.0,90565.0,0.00666033]
[1731822696141,0.0017122,90566.0,90565.0,0.36384828]
[1731822696368,0.0017122,90566.0,90565.0,0.36936844]
[1731822697051,0.079,90583.0,90565.0,0.36936844]
[1731822697052,0.0761356,90583.0,90579.0,0.1104]
[1731822697286,0.0761356,90583.0,90566.0,0.220833]
[1731822697287,0.0761356,90583.0,90582.0,0.110397]
[1731822697531,0.0017122,90586.0,90582.0,0.11384787]
[1731822697768,0.0017122,90586.0,90582.0,0.1170454]
[1731822698000,0.0017122,90586.0,90582.0,0.00319753]
[1731822698476,0.0017122,90586.0,90580.0,0.003]
[1731822698771,0.0017122,90586.0,90583.0,0.00319785]
[1731822698990,0.0017122,90586.0,90581.0,0.110397]
[1731822699260,0.0017122,90586.0,90581.0,0.1135956]
[1731822699490,0.0017122,90586.0,90580.0,0.003]
[1731822699707,0.0017122,90586.0,90582.0,0.110397]
[1731822700164,0.0017122,90586.0,90585.0,0.115393]
[1731822700654,0.0017122,90586.0,90585.0,0.1220409]
[1731822701612,0.0017122,90586.0,90585.0,0.12204088]
[1731822702303,0.0017122,90586.0,90585.0,0.11859125]
[1731822703431,0.0017122,90586.0,90585.0,0.11359125]
[1731822703652,0.0017122,90586.0,90585.0,0.00319825]
[1731822704339,0.0017122,90586.0,90581.0,0.003]
[1731822704551,0.0017122,90586.0,90585.0,0.00319811]
[1731822704773,0.0017122,90586.0,90583.0,0.110395]
[1731822705342,0.0017122,90586.0,90584.0,0.00319826]
[1731822705493,0.0017122,90586.0,90584.0,0.11359126]
[1731822705708,0.0017122,90586.0,90584.0,0.110393]
[1731822705949,0.0017122,90586.0,90585.0,0.00319825]
[1731822707046,0.0017122,90586.0,90585.0,0.11359125]
[1731822707269,0.0017122,90586.0,90585.0,0.11659125]
[1731822708378,0.0017122,90586.0,90585.0,0.12004087]
[1731822708856,0.0017122,90586.0,90585.0,0.11659125]
[1731822709051,0.0017122,90586.0,90585.0,0.12004088]
[1731822709984,0.0802122,90586.0,90585.0,0.00964788]
[1731822710219,0.0017122,90586.0,90585.0,0.12004088]
[1731822710446,0.0017122,90586.0,90585.0,0.11659125]
[1731822710665,0.0017122,90586.0,90585.0,0.12004092]
[1731822711108,0.0017122,90586.0,90585.0,0.13447862]
[1731822711562,0.0017122,90586.0,90585.0,0.12004092]
[1731822712037,0.0726122,90592.0,90586.0,0.110391]
[1731822712380,0.0726122,90592.0,90587.0,0.11383964]
[1731822712475,0.0726122,90592.0,90587.0,0.11356392]
[1731822712726,0.0726122,90592.0,90587.0,0.00317392]
[1731822713179,0.1829972,90592.0,90588.0,0.00344963]
[1731822713412,0.1829972,90592.0,90588.0,0.00305174]
[1731822713654,0.0726122,90592.0,90588.0,0.00305174]
[1731822714589,0.0726122,90592.0,90589.0,0.00344963]
[1731822714801,0.0726122,90592.0,90588.0,0.00305174]
[1731822715021,0.0726122,90592.0,90586.0,0.110391]
[1731822715239,0.1829972,90592.0,90587.0,0.00344964]
[1731822715477,0.1829972,90592.0,90588.0,0.00344964]
[1731822715713,0.1829972,90592.0,90588.0,0.00650215]
[1731822715905,0.110386,90591.0,90588.0,0.00305251]
[1731822716307,0.110386,90591.0,90586.0,0.110391]
[1731822716560,0.110386,90591.0,90589.0,0.0030522]
[1731822716779,0.1829972,90592.0,90586.0,0.110392]
[1731822717053,0.1829972,90592.0,90590.0,0.00305204]
[1731822717269,0.1829972,90592.0,90586.0,0.110392]
[1731822717460,0.1838527,90592.0,90591.0,0.00305204]
[1731822717713,0.1838527,90592.0,90586.0,0.110392]
[1731822717932,0.1838527,90592.0,90591.0,0.00305204]
[1731822718146,0.1838527,90592.0,90586.0,0.110392]
[1731822718368,0.1838527,90592.0,90591.0,0.00305204]
[1731822718583,0.1838527,90592.0,90586.0,0.110392]
[1731822718795,0.110386,90591.0,90587.0,0.01790258]
[1731822719007,0.110386,90591.0,90587.0,0.00344971]
[1731822719219,0.110386,90591.0,90588.0,0.00344971]
[1731822719429,0.110386,90591.0,90589.0,0.00344971]
[1731822719644,0.0734677,90592.0,90585.0,0.113393]
[1731822719862,0.110386,90591.0,90586.0,0.00344969]
[1731822720094,0.110386,90591.0,90587.0,0.01790679]
[1731822720259,0.110388,90589.0,90588.0,0.01790679]
[1731822720470,0.110388,90589.0,90588.0,0.00344969]
[1731822721118,0.110386,90591.0,90588.0,0.01791109]
[1731822721331,0.110388,90589.0,90588.0,0.0144614]
[1731822721571,0.11039,90588.0,90584.0,0.008]
[1731822721783,0.11039,90588.0,90586.0,0.003]
[1731822722074,0.110391,90587.0,90586.0,0.003]
[1731822722316,0.110391,90587.0,90586.0,0.02092485]
[1731822722540,0.110391,90587.0,90586.0,0.02397724]
[1731822722764,0.110391,90587.0,90586.0,0.02092485]
[1731822722981,0.110391,90587.0,90586.0,0.01792485]
[1731822723205,0.110391,90587.0,90586.0,0.02644452]
[1731822723886,0.110391,90587.0,90586.0,0.02344452]
[1731822725155,0.110391,90587.0,90586.0,0.02345718]
[1731822725286,0.112391,90587.0,90586.0,0.04665439]
[1731822727139,0.104391,90587.0,90586.0,0.04665439]
[1731822727567,0.29115355,90587.0,90586.0,0.04665439]
[1731822727771,0.29115355,90587.0,90586.0,0.00344984]
[1731822728213,0.188108,90573.0,90572.0,0.003]
[1731822728451,0.188108,90573.0,90562.0,0.15462386]
[1731822728452,0.11041,90571.0,90567.0,0.005]
[1731822728661,0.11041,90571.0,90570.0,0.21191478]
[1731822728914,0.11041,90571.0,90570.0,0.21491478]
[1731822729130,0.11041,90571.0,90570.0,0.04666649]
[1731822729616,0.11041,90571.0,90570.0,0.02346905]
[1731822730035,0.11041,90571.0,90570.0,0.04665756]
[1731822730248,0.11241,90571.0,90570.0,0.04665756]
[1731822730454,0.11241,90571.0,90570.0,0.02346905]
[1731822730670,0.11241,90571.0,90570.0,0.01965876]
[1731822731323,0.11241,90571.0,90570.0,0.00516083]
[1731822731701,0.24394583,90571.0,90570.0,0.0017104]
[1731822733200,0.31894583,90571.0,90570.0,0.0017104]
[1731822733410,0.36544583,90571.0,90570.0,0.0017104]
[1731822734523,0.46544583,90571.0,90570.0,0.0017104]
[1731822738684,0.46544583,90571.0,90570.0,0.0010144]
[1731822742066,0.45744583,90571.0,90570.0,0.0010144]
[1731822745873,0.59969487,90571.0,90570.0,0.0010144]
[1731822746178,0.48244583,90571.0,90570.0,0.0010144]
[1731822749734,0.59969487,90571.0,90570.0,0.0010144]
[1731822749959,0.48244583,90571.0,90570.0,0.0010144]
[1731822750585,0.48244583,90571.0,90546.0,0.15916155]
[1731822750586,0.112439,90547.0,90546.0,0.15916155]
[1731822751055,0.112439,90547.0,90546.0,0.16219501]
[1731822751276,0.112439,90547.0,90546.0,0.00303346]
[1731822751566,0.112452,90537.0,90536.0,0.003]
[1731822751755,0.220901,90539.0,90534.0,0.16824829]
[1731822751756,0.110454,90535.0,90534.0,0.16824829]
[1731822752011,0.002,90533.0,90530.0,0.0017116]
[1731822752252,0.110459,90531.0,90530.0,0.0017116]
[1731822752919,0.112459,90531.0,90530.0,0.0017116]
[1731822753216,0.110459,90531.0,90530.0,0.0017116]
[1731822753622,0.112459,90531.0,90530.0,0.0017116]
[1731822753869,0.22152155,90531.0,90530.0,0.0017116]
[1731822755325,0.21952155,90531.0,90530.0,0.0047116]
[1731822756993,0.21152155,90531.0,90530.0,0.0047116]
[1731822757235,0.21352155,90531.0,90530.0,0.0047116]
[1731822757665,0.21352155,90531.0,90530.0,0.0017116]
[1731822757901,0.21352155,90531.0,90530.0,0.0047116]
[1731822758173,0.102459,90531.0,90530.0,0.0047116]
[1731822758892,0.102459,90531.0,90530.0,0.00763273]
[1731822759138,0.002,90538.0,90530.0,0.01108472]
[1731822759437,0.110458,90532.0,90531.0,0.00345197]
[1731822759818,0.110458,90532.0,90530.0,0.00763273]
[1731822759819,0.110459,90531.0,90530.0,0.00763273]
[1731822760076,0.110459,90531.0,90530.0,0.0047116]
[1731822760178,0.110459,90531.0,90530.0,0.00816354]
[1731822761091,0.110459,90532.0,90531.0,0.003]
[1731822761308,0.110456,90534.0,90531.0,0.00645194]
[1731822761523,0.110458,90532.0,90531.0,0.003]
[1731822761738,0.110458,90532.0,90531.0,0.00645189]
[1731822762717,0.112458,90532.0,90531.0,0.00345189]
[1731822763220,0.112458,90532.0,90531.0,0.00645189]
[1731822765574,0.112458,90532.0,90531.0,0.00345189]
[1731822765575,0.29942055,90532.0,90531.0,0.00345189]
[1731822766033,0.29942055,90532.0,90530.0,0.0017116]
[1731822766034,0.112459,90531.0,90530.0,0.0017116]
[1731822766248,0.22152155,90531.0,90530.0,0.00516368]
[1731822766473,0.21952155,90531.0,90530.0,0.0017116]
[1731822766691,0.22152155,90531.0,90530.0,0.0017116]
[1731822767839,0.41667059,90531.0,90530.0,0.0017116]
[1731822768093,0.29942155,90531.0,90530.0,0.0017116]
[1731822769604,0.18896255,90531.0,90530.0,0.0017116]
[1731822769818,0.110454,90536.0,90530.0,0.11896064]
[1731822770089,0.110454,90536.0,90531.0,0.00345217]
[1731822770090,0.110454,90535.0,90531.0,0.00345217]
[1731822770388,0.10906255,90536.0,90531.0,0.00645217]
[1731822770586,0.02182784,90540.0,90535.0,0.11724904]
[1731822770587,0.002,90538.0,90535.0,0.11724904]
[1731822770818,0.112453,90536.0,90535.0,0.11724904]
[1731822771278,0.002,90534.0,90531.0,0.003]
[1731822771496,0.002,90534.0,90532.0,0.00345188]
[1731822771729,0.002,90534.0,90533.0,0.00345188]
[1731822771941,0.104454,90535.0,90533.0,0.00345188]
[1731822772165,0.104454,90535.0,90534.0,0.00345188]
[1731822776726,0.51702655,90535.0,90534.0,0.0034519]
[1731822776953,0.110459,90531.0,90530.0,0.0017116]
[1731822777202,0.21952155,90531.0,90530.0,0.00516373]
[1731822777432,0.21952155,90531.0,90530.0,0.01110042]
[1731822777658,0.21952155,90531.0,90530.0,0.00810042]
[1731822778590,0.21952155,90531.0,90530.0,0.00816373]
[1731822779249,0.21952155,90531.0,90530.0,0.0047116]
[1731822779483,0.21952155,90531.0,90530.0,0.00816374]
[1731822779688,0.21952155,90531.0,90530.0,0.00516374]
[1731822779932,0.21952155,90531.0,90530.0,0.0017116]
[1731822780145,0.21952155,90531.0,90530.0,0.00516369]
[1731822783841,0.21952155,90531.0,90530.0,0.0017116]
[1731822787179,0.21152155,90531.0,90530.0,0.0017116]
[1731822787385,0.0783116,90535.0,90530.0,0.0017116]
[1731822787386,0.0783116,90535.0,90530.0,0.18059932]
[1731822787602,0.0017116,90535.0,90534.0,0.113455]
[1731822787823,0.0017116,90535.0,90534.0,0.24740698]
[1731822788057,0.0017116,90535.0,90534.0,0.25034952]
[1731822788308,0.0017116,90535.0,90534.0,0.25255835]
[1731822788545,0.0017116,90535.0,90534.0,0.25808095]
[1731822788783,0.0017116,90535.0,90534.0,0.25587212]
[1731822789269,0.0017116,90535.0,90534.0,0.25587176]
[1731822789519,0.0017116,90535.0,90534.0,0.24689754]
[1731822789742,0.0017116,90535.0,90534.0,0.25034916]
[1731822791165,0.0017116,90535.0,90534.0,0.25255794]
[1731822791833,0.0017116,90535.0,90534.0,0.34953792]
[1731822792296,0.0017116,90535.0,90534.0,0.25034912]
[1731822795497,0.0017116,90535.0,90534.0,0.25255782]
[1731822795953,0.0017116,90535.0,90534.0,0.25255736]
[1731822796157,0.0017116,90535.0,90534.0,0.25034866]
[1731822800447,0.0017116,90535.0,90534.0,0.25534866]
[1731822802044,0.11043,90555.0,90554.0,0.003]
[1731822803165,0.0791,90561.0,90554.0,0.003]
[1731822803409,0.110424,90560.0,90555.0,0.003]
[1731822803599,0.18816255,90561.0,90555.0,0.00591115]
[1731822803810,0.110426,90558.0,90555.0,0.00591115]
[1731822804027,0.110426,90558.0,90555.0,0.003]
[1731822804276,0.110426,90558.0,90556.0,0.00591046]
[1731822804723,0.110426,90558.0,90556.0,0.003]
[1731822804948,0.110426,90558.0,90557.0,0.00291029]
[1731822806070,0.18816255,90561.0,90557.0,0.00291029]
[1731822806302,0.18816255,90561.0,90547.0,0.33987688]
[1731822806303,0.110428,90557.0,90551.0,0.110434]
[1731822806504,0.110428,90557.0,90548.0,0.220877]
[1731822806505,0.110428,90557.0,90550.0,0.110435]
[1731822806942,0.18816255,90561.0,90550.0,0.110435]
[1731822806943,0.220852,90558.0,90550.0,0.110435]
[1731822808003,0.220855,90557.0,90548.0,0.110438]
[1731822808220,0.110431,90554.0,90549.0,0.110436]
[1731822808433,0.110429,90556.0,90550.0,0.110435]
[1731822810455,0.110429,90556.0,90548.0,0.220877]
[1731822810456,0.18816255,90561.0,90547.0,0.11899888]
[1731822810661,0.110431,90554.0,90548.0,0.1138879]
[1731822810871,0.22085,90559.0,90550.0,0.11732726]
[1731822811106,0.110428,90557.0,90555.0,0.11732726]
[1731822811744,0.110428,90556.0,90555.0,0.11732726]
[1731822813098,0.1112839,90556.0,90555.0,0.11732726]
[1731822813520,0.1112839,90556.0,90551.0,0.110434]
[1731822813737,0.1112839,90556.0,90555.0,0.0030408]
[1731822813931,0.1112839,90556.0,90550.0,0.110435]
[1731822814143,0.1112839,90556.0,90551.0,0.0034509]
[1731822814354,0.1112839,90556.0,90551.0,0.00304154]
[1731822815208,0.1112839,90556.0,90552.0,0.00345092]
[1731822815429,0.1112839,90556.0,90551.0,0.11347554]
[1731822815638,0.1112839,90556.0,90553.0,0.00304117]
[1731822815877,0.1112839,90556.0,90552.0,0.00304136]
[1731822816079,0.1112839,90556.0,90548.0,0.220876]
[1731822816080,0.1112839,90556.0,90554.0,0.00304098]
[1731822816298,0.1112839,90556.0,90550.0,0.110436]
[1731822816569,0.1112839,90556.0,90555.0,0.0030408]
[1731822816718,0.1112839,90556.0,90549.0,0.110437]
[1731822816952,0.1032839,90556.0,90555.0,0.0030408]
[1731822817180,0.1032839,90556.0,90550.0,0.110435]
[1731822817391,0.1032839,90556.0,90555.0,0.0030408]
[1731822817613,0.1032839,90556.0,90555.0,0.12077817]
[1731822817614,0.0008559,90556.0,90555.0,0.12077817]
[1731822817835,0.0008559,90556.0,90555.0,0.35157623]
[1731822818055,0.0008559,90556.0,90555.0,0.23424897]
[1731822818510,0.0008559,90556.0,90555.0,0.23079806]
[1731822819349,0.0008559,90556.0,90555.0,0.34812532]
[1731822819576,0.0008559,90556.0,90555.0,0.1601708]
[1731822819815,0.0008559,90556.0,90555.0,0.39982532]
[1731822820685,0.0008559,90556.0,90555.0,0.40327569]
[1731822820909,0.0008559,90556.0,90555.0,0.34732067]
[1731822822033,0.0008559,90556.0,90555.0,0.39260109]
[1731822828156,0.0008559,90556.0,90555.0,0.39460109]
[1731822829698,0.0008559,90556.0,90555.0,0.21590159]
[1731822829936,0.0008559,90556.0,90555.0,0.39460109]
[1731822830477,0.0008559,90556.0,90555.0,0.39260109]
[1731822831124,0.0008559,90556.0,90555.0,0.38760109]
[1731822831328,0.0008559,90556.0,90555.0,0.39260109]
[1731822832399,0.220843,90562.0,90555.0,0.05177159]
[1731822832619,0.0826,90561.0,90556.0,0.00345037]
[1731822832821,0.0826,90561.0,90557.0,0.00345037]
[1731822833037,0.0826,90561.0,90560.0,0.110424]
[1731822833336,0.0826,90573.0,90560.0,0.00643899]
[1731822833545,0.110415,90568.0,90562.0,0.110421]
[1731822833845,0.110415,90568.0,90563.0,0.00345028]
[1731822834051,0.110415,90568.0,90564.0,0.00345028]
[1731822834243,0.110415,90568.0,90565.0,0.00644079]
[1731822834572,0.110415,90568.0,90566.0,0.00345028]
[1731822834718,0.110415,90568.0,90567.0,0.00345028]
[1731822834936,0.110415,90567.0,90563.0,0.00345028]
[1731822835130,0.110415,90567.0,90564.0,0.00345035]
[1731822835363,0.110415,90567.0,90565.0,0.00345035]
[1731822835568,0.110415,90567.0,90566.0,0.00345035]
[1731822835776,0.110415,90567.0,90558.0,0.005]
[1731822835971,0.220818,90572.0,90560.0,0.110423]
[1731822836191,0.110415,90567.0,90560.0,0.110423]
[1731822836406,0.0779,90571.0,90558.0,0.005]
[1731822836606,0.0779,90571.0,90556.0,0.16524829]
[1731822836812,0.110421,90563.0,90556.0,0.16524829]
[1731822837185,0.110421,90563.0,90557.0,0.115427]
[1731822838167,0.110421,90563.0,90558.0,0.005]
[1731822838688,0.0787556,90571.0,90562.0,0.1786995]
[1731822838866,0.0008556,90571.0,90570.0,0.2891105]
[1731822839072,0.0008556,90571.0,90570.0,0.1786995]
[1731822840902,0.0008556,90571.0,90570.0,0.2891105]
[1731822841952,0.0008556,90571.0,90570.0,0.1786995]
[1731822842161,0.0008556,90571.0,90565.0,0.222835]
[1731822842371,0.0008556,90571.0,90569.0,0.110412]
[1731822842749,0.0008556,90571.0,90567.0,0.110415]
[1731822842854,0.0008556,90571.0,90570.0,0.00298923]
[1731822843044,0.0008556,90571.0,90569.0,0.110412]
[1731822843228,0.0008556,90571.0,90570.0,0.00298923]
[1731822843619,0.0008556,90571.0,90569.0,0.110412]
[1731822843819,0.0008556,90571.0,90570.0,0.11340023]
[1731822845602,0.0008556,90571.0,90570.0,0.29209973]
[1731822845798,0.1062586,90577.0,90570.0,0.29209973]
[1731822846236,0.1062586,90577.0,90571.0,0.11041]
[1731822846432,0.0008553,90587.0,90586.0,0.110392]
[1731822846652,0.0008553,90587.0,90586.0,0.11336133]
[1731822846853,0.0738108,90592.0,90586.0,0.12018032]
[1731822847071,0.0738108,90592.0,90591.0,0.11721099]
[1731822847262,0.0738108,90592.0,90591.0,0.12017943]
[1731822847719,0.0738108,90592.0,90591.0,0.12362893]
[1731822848636,0.0738108,90592.0,90591.0,0.00641794]
[1731822848814,0.1841958,90592.0,90591.0,0.00641794]
[1731822849026,0.1841958,90592.0,90591.0,0.0034495]
[1731822849209,0.1841958,90592.0,90591.0,0.00640536]
[1731822849543,0.1850514,90592.0,90591.0,0.0064053]
[1731822849976,0.1850514,90592.0,90591.0,0.00640529]
[1731822851607,0.0746664,90592.0,90591.0,0.00640529]
[1731822852154,0.0746664,90592.0,90591.0,0.01792359]
[1731822853050,0.0746664,90592.0,90591.0,0.01792103]
[1731822853189,0.0746664,90592.0,90591.0,0.02087191]
[1731822853445,0.0746664,90592.0,90591.0,0.00640029]
[1731822854911,0.1850514,90592.0,90591.0,0.00640029]
[1731822855336,0.1850514,90592.0,90591.0,0.00344941]
[1731822856018,0.1850514,90592.0,90591.0,0.0062657]
[1731822857882,0.0746664,90592.0,90591.0,0.0062657]
[1731822858288,0.0746664,90592.0,90591.0,0.00344941]
[1731822858289,0.1850514,90592.0,90591.0,0.00344941]
[1731822858499,0.1850514,90592.0,90591.0,0.00611864]
[1731822858708,0.1850514,90592.0,90591.0,0.00588464]
[1731822859644,0.0746664,90592.0,90591.0,0.00588464]
[1731822861030,0.0746664,90592.0,90591.0,0.00759524]
[1731822861262,0.0746664,90592.0,90591.0,0.00492601]
[1731822861716,0.0746664,90592.0,90591.0,0.00759524]
[1731822861923,0.0746664,90592.0,90591.0,0.00492601]
[1731822862149,0.0666664,90592.0,90591.0,0.11797882]
[1731822862368,0.0008556,90592.0,90591.0,0.13244049]
[1731822862635,0.0008556,90592.0,90591.0,0.02205449]
[1731822863429,0.0008556,90592.0,90591.0,0.01883908]
[1731822865473,0.0008556,90592.0,90591.0,0.12922508]
[1731822865712,0.0008556,90592.0,90591.0,0.01883908]
[1731822866140,0.0008556,90592.0,90591.0,0.12922508]
[1731822866429,0.0008556,90592.0,90591.0,0.13695165]
[1731822867322,0.0008556,90592.0,90591.0,0.13895165]
[1731822868014,0.0008556,90592.0,90591.0,0.13695165]
[1731822868224,0.0008556,90592.0,90591.0,0.13895165]
[1731822868853,0.0008556,90592.0,90591.0,0.43757048]
[1731822869048,0.0008556,90592.0,90591.0,0.33433522]
[1731822869317,0.0008556,90592.0,90591.0,0.33633522]
[1731822869538,0.0008556,90592.0,90591.0,0.29822435]
[1731822869743,0.0008556,90592.0,90591.0,0.39724784]
[1731822870020,0.0008556,90592.0,90591.0,0.29822435]
[1731822870205,0.0008556,90592.0,90591.0,0.39924784]
[1731822870613,0.0008556,90592.0,90591.0,0.29270541]
[1731822870684,0.0008556,90592.0,90591.0,0.30167249]
[1731822871345,0.0008556,90592.0,90591.0,0.40269598]
[1731822871703,0.0008556,90592.0,90591.0,0.3937289]
[1731822871788,0.0008556,90592.0,90591.0,0.40269594]
[1731822872268,0.0008556,90592.0,90591.0,0.40614484]
[1731822872490,0.0008556,90592.0,90591.0,0.30712135]
[1731822873338,0.0008556,90592.0,90591.0,0.67287557]
[1731822873591,0.0008556,90592.0,90591.0,0.67287552]
[1731822874426,0.0008556,90592.0,90591.0,0.87090577]
[1731822875585,0.0008556,90592.0,90591.0,0.86890577]
[1731822875767,0.0008556,90592.0,90591.0,0.87090577]
[1731822876413,0.0017118,90593.0,90591.0,0.87090577]
[1731822876628,0.0017118,90593.0,90592.0,0.64823102]
[1731822876956,0.0017118,90593.0,90592.0,0.40165713]
[1731822877089,0.0789,90606.0,90598.0,0.11718033]
[1731822877090,0.1881152,90606.0,90598.0,0.11718033]
[1731822877298,0.1881152,90606.0,90599.0,0.02344703]
[1731822877548,0.0777472,90606.0,90600.0,0.02344703]
[1731822877756,0.0777472,90606.0,90601.0,0.02344703]
[1731822877993,0.0777472,90606.0,90602.0,0.02344703]
[1731822878230,0.0777472,90606.0,90603.0,0.02344703]
[1731822878467,0.0777472,90606.0,90603.0,0.02608804]
[1731822878685,0.158069,90605.0,90604.0,0.01792874]
[1731822879119,0.0477,90605.0,90604.0,0.01792874]
[1731822879572,0.0477,90605.0,90604.0,0.02056881]
[1731822880045,0.0477,90605.0,90604.0,0.01792874]
[1731822880488,0.0777472,90606.0,90604.0,0.24811795]
[1731822880790,0.0777472,90606.0,90604.0,0.11982021]
[1731822880916,0.0777472,90606.0,90605.0,0.02344485]
[1731822881526,0.0777472,90606.0,90605.0,0.02608473]
[1731822883069,0.0777472,90606.0,90605.0,0.02056656]
[1731822883293,0.0777472,90606.0,90605.0,0.02608473]
[1731822883517,0.0777472,90606.0,90605.0,0.02056656]
[1731822883733,0.0777472,90606.0,90605.0,0.02056663]
[1731822884165,0.0777472,90606.0,90605.0,0.02608492]
[1731822884397,0.0777472,90606.0,90605.0,0.00608881]
[1731822884864,0.1881142,90606.0,90605.0,0.00608881]
[1731822885297,0.0786025,90606.0,90605.0,0.00344893]
[1731822885717,0.0786025,90606.0,90605.0,0.0063528]
[1731822886425,0.0786025,90606.0,90605.0,0.02083043]
[1731822886686,0.1889695,90606.0,90605.0,0.02083043]
[1731822887107,0.2339695,90606.0,90605.0,0.00344893]
[1731822890809,0.220739,90605.0,90598.0,0.04479958]
[1731822891018,0.110374,90601.0,90599.0,0.00344912]
[1731822891244,0.110374,90601.0,90600.0,0.00344912]
[1731822892091,0.102374,90601.0,90600.0,0.00344912]
[1731822892316,0.177774,90601.0,90600.0,0.00344912]
[1731822893514,0.33363655,90601.0,90600.0,0.00344912]
[1731822893998,0.185785,90592.0,90591.0,0.0017106]
[1731822894205,0.185785,90592.0,90591.0,0.00516011]
[1731822894875,0.232585,90592.0,90591.0,0.00516011]
[1731822896895,0.34164755,90592.0,90591.0,0.00516011]
[1731822897402,0.34164755,90592.0,90591.0,0.0017106]
[1731822898502,0.36964755,90592.0,90591.0,0.0017106]
[1731822901130,0.34164755,90592.0,90591.0,0.0017106]
[1731822901515,0.29484755,90592.0,90591.0,0.0017106]
[1731822901749,0.185785,90592.0,90591.0,0.0017106]
[1731822902019,0.220753,90599.0,90591.0,0.0017106]
[1731822902245,0.110379,90597.0,90591.0,0.00437664]
[1731822902508,0.22075,90600.0,90591.0,0.00437664]
[1731822902725,0.10906255,90602.0,90591.0,0.00437664]
[1731822903065,0.0754,90609.0,90592.0,0.01789569]
[1731822903222,0.110383,90593.0,90592.0,0.01789569]
[1731822903450,0.10906255,90605.0,90592.0,0.01789569]
[1731822903451,0.10906255,90605.0,90592.0,0.02056346]
[1731822903678,0.10906255,90605.0,90591.0,0.0017106]
[1731822903679,0.220745,90602.0,90593.0,0.01789574]
[1731822903929,0.110369,90605.0,90596.0,0.28895866]
[1731822904275,0.0754,90609.0,90596.0,0.28895866]
[1731822904276,0.0754,90609.0,90598.0,0.220755]
[1731822904521,0.220727,90610.0,90599.0,0.01444668]
[1731822904714,0.110369,90605.0,90600.0,0.18314431]
[1731822904952,0.110369,90605.0,90601.0,0.01789602]
[1731822905172,0.110369,90605.0,90602.0,0.00344934]
[1731822905417,0.110364,90609.0,90603.0,0.00344934]
[1731822905602,0.220714,90615.0,90601.0,0.00266034]
[1731822905603,0.220714,90615.0,90604.0,0.00344934]
[1731822905888,0.220714,90615.0,90605.0,0.00344934]
[1731822906362,0.220714,90615.0,90605.0,0.00663485]
[1731822906582,0.0754,90617.0,90605.0,0.11700385]
[1731822906821,0.22072,90613.0,90605.0,0.02108128]
[1731822907045,0.1032223,90606.0,90605.0,0.02108128]
[1731822907291,0.110365,90608.0,90605.0,0.01789577]
[1731822907538,0.110367,90606.0,90605.0,0.04499359]
[1731822907785,0.10906255,90613.0,90605.0,0.00344908]
[1731822908047,0.110367,90606.0,90605.0,0.00318551]
[1731822908280,0.11037,90604.0,90601.0,0.00551853]
[1731822908536,0.110372,90602.0,90601.0,0.00551853]
[1731822908737,0.110376,90599.0,90598.0,0.16524829]
[1731822908995,0.110376,90599.0,90598.0,0.01444802]
[1731822909207,0.110376,90599.0,90598.0,0.01789728]
[1731822909435,0.110376,90599.0,90598.0,0.0178973]
[1731822910013,0.220748,90601.0,90591.0,0.0017106]
[1731822910014,0.110381,90595.0,90591.0,0.0017106]
[1731822910254,0.110376,90599.0,90598.0,0.0178977]
[1731822910336,0.110383,90594.0,90591.0,0.0017106]
[1731822910564,0.110383,90594.0,90592.0,0.00896813]
[1731822910784,0.110383,90594.0,90593.0,0.02341822]
[1731822913090,0.34824555,90594.0,90593.0,0.00344928]
[1731822913676,0.34824555,90594.0,90591.0,0.0017106]
[1731822913677,0.110385,90592.0,90591.0,0.0017106]
[1731822913918,0.21944755,90592.0,90591.0,0.0017106]
[1731822914835,0.0813,90594.0,90591.0,0.0017106]
[1731822915048,0.0813,90605.0,90592.0,0.00344974]
[1731822915291,0.220743,90603.0,90593.0,0.00344974]
[1731822915516,0.10906255,90602.0,90594.0,0.01790149]
[1731822915740,0.10906255,90602.0,90595.0,0.00344974]
[1731822915741,0.11038,90596.0,90595.0,0.00344974]
[1731822916650,0.11038,90596.0,90591.0,0.0017106]
[1731822916651,0.110385,90592.0,90591.0,0.0017106]
[1731822917281,0.110385,90592.0,90591.0,0.00516031]
[1731822918088,0.110385,90592.0,90591.0,0.00516033]
[1731822918826,0.110385,90592.0,90591.0,0.0017106]
[1731822919053,0.110385,90592.0,90591.0,0.00516032]